bitfinex/quotes_ETHUSD_20251009
["timestamp","ask_amount","ask_price","bid_price","bid_amount"]
[1759997836757,0.002,4393.5,4393.4,14.72761415]
[1759997836959,0.0012,4393.5,4393.4,17.11735563]
[1759997837367,0.0012,4393.5,4393.4,14.84121415]
[1759997837770,0.0012,4393.5,4393.4,17.11735563]
[1759997837968,0.0012,4393.5,4393.4,14.84121415]
[1759997838168,0.0012,4393.5,4393.4,14.6136]
[1759997838369,0.0012,4393.5,4393.4,0.1136]
[1759997838763,0.0012,4393.5,4392.6,6.46]
[1759997838764,2.3692,4393.5,4392.6,14.5]
[1759997839070,2.3692,4393.5,4391.7,7.70197214]
[1759997839071,2.3692,4393.5,4391.7,5.425]
[1759997839568,2.3692,4393.5,4392.1,14.5]
[1759997839970,9.96636356,4393.3,4392.1,14.5]
[1759997840568,2.3692,4393.5,4391.1,0.01]
[1759997840569,9.96636356,4392.7,4391.1,0.01]
[1759997840770,9.96636356,4391.5,4391.1,0.01]
[1759997841371,9.96636356,4392.7,4391.1,0.01]
[1759997841568,6.46,4392.5,4391.4,2.2771359]
[1759997841769,6.46,4392.5,4391.4,0.22871359]
[1759997841969,9.96636356,4392.9,4391.5,16.77710188]
[1759997842162,8.828,4392.8,4391.5,14.5]
[1759997842362,6.46,4392.7,4391.6,2.29290487]
[1759997842669,6.461,4392.7,4391.7,2.27697802]
[1759997842872,9.96636356,4392.3,4391.5,14.5]
[1759997843237,8.83,4392.2,4391.6,0.02277074]
[1759997843844,6.463,4392.5,4391.5,14.5]
[1759997844069,9.96636356,4392.3,4391.5,14.5]
[1759997845273,6.463,4392.5,4391.5,14.5]
[1759997845669,1.0,4392.4,4391.5,14.5]
[1759997845874,6.463,4392.3,4391.5,14.5]
[1759997846287,1.0,4392.4,4391.5,16.77708077]
[1759997846491,1.0,4392.4,4391.5,14.5]
[1759997846655,1.11,4392.7,4391.8,2.27692687]
[1759997847198,1.11,4392.7,4391.6,6.462]
[1759997847892,1.11,4392.7,4391.5,14.5]
[1759997848567,0.0012,4393.5,4391.6,6.462]
[1759997848759,0.0012,4393.5,4391.8,2.27697071]
[1759997848961,0.0012,4393.5,4393.4,0.1136]
[1759997849160,0.0012,4393.5,4393.4,14.6136]
[1759997850895,0.0012,4393.5,4393.4,16.88974148]
[1759997851590,0.0012,4393.5,4393.4,14.6136]
[1759997852711,0.0012,4393.5,4393.4,14.5]
[1759997852873,0.0012,4393.5,4392.0,6.461]
[1759997853210,0.0012,4393.5,4392.1,6.461]
[1759997853524,0.0012,4393.5,4392.5,14.5]
[1759997853733,0.0012,4393.5,4393.1,2.27628363]
[1759997853915,0.0012,4393.5,4393.2,2.29899909]
[1759997854116,0.0012,4393.5,4393.4,2.27614148]
[1759997854421,0.0012,4393.5,4393.4,23.25990289]
[1759997854634,0.0012,4393.5,4393.4,20.961]
[1759997855000,0.0012,4393.5,4393.4,23.23714148]
[1759997855426,0.0012,4393.5,4393.4,20.961]
[1759997855629,0.0012,4393.5,4393.4,23.23714148]
[1759997856032,0.0012,4393.5,4393.4,20.961]
[1759997856235,0.0012,4393.5,4393.4,14.5]
[1759997857032,0.0012,4393.5,4393.4,16.77614148]
[1759997857593,0.0012,4393.5,4393.4,23.23514148]
[1759997857785,0.0012,4393.5,4393.4,14.5]
[1759997859424,0.0012,4393.5,4393.4,20.96]
[1759997860000,0.0004,4393.5,4393.4,20.96]
[1759997860690,0.0004,4393.5,4393.4,23.23614148]
[1759997862589,0.0004,4393.5,4393.4,16.77614148]
[1759997862794,0.0004,4393.5,4393.4,27.52114148]
[1759997863211,0.0004,4393.5,4393.4,28.15474148]
[1759997863532,0.0004,4393.5,4393.4,27.52114148]
[1759997864315,0.0004,4393.5,4393.4,18.69614148]
[1759997864513,0.0004,4393.5,4393.4,25.15314148]
[1759997864716,0.0004,4393.5,4393.4,27.52014148]
[1759997865338,1e-08,4393.8,4393.7,2.27598607]
[1759997865669,1e-08,4393.8,4393.7,10.65298607]
[1759997866042,1e-08,4393.8,4393.7,25.15298607]
[1759997866761,1e-08,4393.8,4393.7,25.78658607]
[1759997866957,0.01,4393.9,4393.8,4.19593427]
[1759997868031,0.01,4393.9,4393.8,4.82953427]
[1759997868225,0.002,4394.0,4393.9,4.82948247]
[1759997868426,0.002,4394.0,4393.9,11.28748247]
[1759997868952,0.002,4394.0,4393.9,11.59141018]
[1759997869246,0.002,4394.0,4393.9,11.28748247]
[1759997870148,0.01,4394.9,4394.4,2.90922352]
[1759997870349,0.01,4394.9,4394.7,2.27546817]
[1759997870661,0.01,4394.9,4394.8,13.0194164]
[1759997872854,0.01,4394.9,4394.8,13.1330164]
[1759997873188,0.012,4394.9,4394.8,13.1330164]
[1759997874094,0.012,4394.9,4394.8,13.58473723]
[1759997874250,0.012,4394.9,4394.8,13.69634982]
[1759997874453,1e-08,4394.9,4394.8,14.32994982]
[1759997874656,0.01,4396.9,4395.2,0.6336]
[1759997874852,0.01,4396.9,4395.8,2.27489876]
[1759997875057,0.01,4396.9,4396.8,2.27438136]
[1759997875251,0.01,4396.9,4396.8,10.64838136]
[1759997877404,0.01,4396.9,4395.7,2.27492668]
[1759997877405,0.01,4396.9,4396.2,2.366]
[1759997877703,0.01,4396.9,4396.3,4.4095998]
[1759997878067,0.01,4396.9,4396.4,1.92]
[1759997878268,0.01,4396.9,4396.2,2.27467483]
[1759997878579,0.01,4396.9,4396.4,1.92]
[1759997878782,0.01,4396.9,4396.5,4.26752894]
[1759997879201,0.01,4396.9,4396.8,2.27438136]
[1759997879416,0.01,4396.9,4396.8,6.47374381]
[1759997879718,0.01,4396.9,4396.8,6.451]
[1759997880008,0.01,4396.9,4396.8,8.72538136]
[1759997880227,0.01,4396.9,4396.8,6.451]
[1759997880527,0.01,4396.9,4394.9,1.92]
[1759997880821,0.01,4396.9,4395.0,4.304]
[1759997880972,0.01,4396.9,4395.2,1.92]
[1759997881173,0.01,4396.9,4395.4,2.27510579]
[1759997881411,0.01,4396.9,4396.7,2.27443289]
[1759997881571,0.01,4396.9,4396.8,3.85]
[1759997881771,0.01,4396.9,4396.8,6.12438136]
[1759997882309,0.01,4396.9,4395.5,0.3206658]
[1759997882511,0.01,4396.9,4395.5,6.7726658]
[1759997882807,0.01,4396.9,4396.0,2.27478457]
[1759997882977,0.01,4396.9,4395.9,5.591]
[1759997883173,0.0092,4396.9,4395.9,5.591]
[1759997884585,0.0092,4396.9,4396.8,0.1136]
[1759997885592,0.0092,4396.9,4396.3,1.584]
[1759997885787,0.0092,4396.9,4396.3,6.4594]
[1759997886023,0.0092,4396.9,4395.6,0.22406658]
[1759997886191,0.0092,4396.9,4395.8,5.36]
[1759997886391,0.0092,4396.9,4394.8,0.46175524]
[1759997886726,0.0092,4396.9,4395.0,1.92]
[1759997886908,2.27438136,4396.8,4395.0,1.92]
[1759997887110,0.0092,4396.9,4395.0,1.92]
[1759997887310,0.0092,4396.9,4395.1,2.27525453]
[1759997888122,2.27449946,4396.6,4394.9,5.237]
[1759997888322,4.475,4396.5,4394.9,7.51235599]
[1759997888619,4.475,4396.5,4395.0,1.92]
[1759997889026,7.375,4396.5,4395.0,1.92]
[1759997889696,9.64958275,4396.5,4395.0,1.92]
[1759997889895,7.375,4396.5,4395.0,1.92]
[1759997890225,2.27473981,4396.2,4394.4,5.944]
[1759997890405,2.27473577,4396.2,4394.4,5.944]
[1759997890608,2.27473577,4396.2,4394.5,1.92]
[1759997890793,2.27473577,4396.2,4394.4,5.944]
[1759997890794,2.27483805,4396.0,4394.1,0.01]
[1759997890994,2.27483805,4396.0,4394.1,3.16]
[1759997891206,2.72978586,4396.0,4394.2,1.92]
[1759997891406,0.6336,4395.8,4394.1,0.01]
[1759997891644,6.60395511,4395.7,4394.2,0.02275727]
[1759997891862,4.329,4395.7,4394.2,0.02275727]
[1759997892061,4.329,4395.7,4394.1,0.01]
[1759997892062,0.6336,4395.1,4394.1,0.01]
[1759997892362,0.45494781,4396.0,4394.2,0.01144984]
[1759997892363,2.37494781,4396.0,4394.2,0.01144984]
[1759997892567,0.12265524,4396.9,4394.3,0.02275675]
[1759997892568,9.465,4396.4,4394.3,0.02275675]
[1759997892714,9.465,4396.4,4394.1,0.01]
[1759997892715,2.27483264,4396.0,4394.1,0.01]
[1759997893115,2.27484919,4395.9,4394.1,0.01]
[1759997893437,4.175,4396.3,4394.1,0.01]
[1759997893645,2.27501375,4395.6,4394.1,0.01]
[1759997893838,9.4626,4395.5,4394.1,0.01]
[1759997894142,2.27515001,4395.4,4394.2,0.02275727]
[1759997894348,2.9,4395.2,4394.2,0.02275727]
[1759997894513,2.9,4395.2,4394.1,0.01]
[1759997894920,0.6336,4395.1,4394.1,0.01]
[1759997895120,2.90932709,4394.2,4394.1,0.01]
[1759997895325,11.73932709,4394.2,4394.1,0.01]
[1759997898369,13.65932709,4394.2,4394.1,0.01]
[1759997898549,14.12752709,4394.2,4394.1,1e-08]
[1759997899941,4.82932709,4394.2,4394.1,1e-08]
[1759997900167,6.97754077,4394.2,4394.1,1e-08]
[1759997900338,22.44234077,4394.2,4394.1,1e-08]
[1759997900543,34.97269676,4394.2,4394.1,1e-08]
[1759997900764,34.50449676,4394.2,4394.1,1e-08]
[1759997901160,34.97269676,4394.2,4394.1,1e-08]
[1759997903545,16.67269676,4394.2,4394.1,1e-08]
[1759997903743,34.97869676,4394.2,4394.1,1e-08]
[1759997906214,34.97869676,4394.2,4393.1,1e-08]
[1759997906215,0.6336,4393.5,4393.1,1e-08]
[1759997906346,2.27593241,4393.9,4393.1,1e-08]
[1759997906347,17.11780109,4393.2,4393.1,1e-08]
[1759997906677,25.83957154,4393.2,4393.1,1e-08]
[1759997907042,26.30777154,4393.2,4393.1,1e-08]
[1759997908244,17.47077154,4393.2,4393.1,1e-08]
[1759997908446,38.78277154,4393.2,4393.1,1e-08]
[1759997908646,28.61677154,4393.2,4393.1,1e-08]
[1759997908844,35.55497154,4393.2,4393.1,1e-08]
[1759997909462,16.14317154,4393.2,4393.1,1e-08]
[1759997909678,30.28240109,4393.2,4393.1,1e-08]
[1759997910056,11.97140109,4393.2,4393.1,1e-08]
[1759997910258,18.311,4393.2,4393.1,1e-08]
[1759997910574,8.838,4393.2,4393.1,1e-08]
[1759997911089,11.1142451,4393.2,4393.1,1e-08]
[1759997911458,0.6336,4393.8,4393.1,1e-08]
[1759997911676,9.474,4393.3,4393.1,1e-08]
[1759997911843,2.2762451,4393.2,4393.1,1e-08]
[1759997912048,8.838,4393.2,4393.1,1e-08]
[1759997912477,11.1142451,4393.2,4393.1,1e-08]
[1759997912677,9.96787165,4393.5,4393.1,1e-08]
[1759997913090,18.311,4393.4,4393.1,1e-08]
[1759997913249,2.27619333,4393.3,4393.1,1e-08]
[1759997913448,6.471,4393.2,4393.1,1e-08]
[1759997913693,8.7472451,4393.2,4393.1,1e-08]
[1759997914776,11.1152451,4393.2,4393.1,1e-08]
[1759997915666,8.839,4393.2,4393.1,1e-08]
[1759997915900,11.1152451,4393.2,4393.1,1e-08]
[1759997917203,14.88220415,4393.2,4393.1,1e-08]
[1759997918065,5.57500415,4393.2,4393.1,1e-08]
[1759997918510,22.5082451,4393.2,4393.1,1e-08]
[1759997918667,4.1962451,4393.2,4393.1,1e-08]
[1759997918875,22.5082451,4393.2,4393.1,1e-08]
[1759997919611,22.5082451,4393.2,4392.6,0.001]
[1759997919612,2.90994873,4393.0,4392.6,0.001]
[1759997919810,9.37994873,4393.0,4392.6,0.001]
[1759997920106,11.63171918,4393.0,4392.6,0.001]
[1759997920291,12.09991918,4393.0,4392.6,0.001]
[1759997920496,14.01991918,4393.0,4392.6,0.001]
[1759997920702,2.27707441,4391.6,4388.9,2.27844186]
[1759997920881,20.58907441,4391.6,4389.5,1.92]
[1759997921081,8.839,4391.6,4389.5,2.27815784]
[1759997921281,11.11607441,4391.6,4389.4,2.27818314]
[1759997921482,11.11607441,4391.6,4390.1,0.03276221]
[1759997921695,11.11607441,4391.6,4390.1,0.01]
[1759997922391,2.27707441,4391.6,4390.1,0.01]
[1759997922591,11.11707441,4391.6,4390.1,0.01]
[1759997922796,9.96787165,4392.0,4390.1,0.01]
[1759997922992,18.315,4391.9,4390.1,0.01]
[1759997923195,5.17707441,4391.6,4390.1,0.01]
[1759997923813,14.01607441,4391.6,4390.1,0.01]
[1759997924331,11.6686,4391.6,4390.1,0.01]
[1759997924633,2.27728183,4391.2,4390.1,0.01]
[1759997924795,8.74828183,4391.2,4390.1,0.01]
[1759997925482,8.74828183,4391.2,4390.1,0.03277852]
[1759997926314,8.74828183,4391.2,4390.1,0.01]
[1759997926912,6.471,4391.2,4390.1,0.01]
[1759997927226,8.839,4391.2,4390.1,0.01]
[1759997927388,11.11628183,4391.2,4390.1,0.01]
[1759997927582,8.839,4391.2,4390.1,0.01]
[1759997927784,2.8296,4391.6,4390.1,0.01]
[1759997927987,7.027,4391.5,4390.1,2.28784083]
[1759997928530,2.27682797,4392.1,4390.2,4.19778631]
[1759997928710,8.844,4392.0,4390.1,4.20784198]
[1759997928938,8.844,4392.0,4390.1,0.01]
[1759997929236,8.8432,4392.0,4390.1,4.20783081]
[1759997929565,0.1136,4391.7,4391.1,0.011]
[1759997929719,0.156,4391.6,4391.2,0.02277281]
[1759997930061,0.156,4391.6,4391.1,0.011]
[1759997930260,3.0136,4391.7,4391.2,0.02277281]
[1759997930473,2.9,4391.7,4391.5,0.1136]
[1759997930747,3.091,4391.7,4391.5,0.1136]
[1759997931662,3.108,4391.7,4391.5,0.1136]
[1759997932139,5.048,4391.8,4391.6,0.1136]
[1759997932449,4.55,4391.8,4391.6,0.1136]
[1759997932920,0.1136,4392.7,4391.6,0.1136]
[1759997933116,2.648,4392.6,4391.6,0.1136]
[1759997933318,2.648,4392.6,4392.0,0.1136]
[1759997934246,0.1136,4392.7,4392.0,0.1136]
[1759997934670,2.238,4392.6,4392.1,0.02276659]
[1759997934831,0.1136,4392.7,4392.1,0.02276659]
[1759997935031,6.192,4392.6,4392.0,0.1136]
[1759997935338,0.1136,4392.7,4392.0,0.1136]
[1759997935542,6.473,4392.5,4392.0,0.1136]
[1759997937014,0.1136,4392.7,4392.0,0.1136]
[1759997937335,6.472,4392.5,4391.5,14.5]
[1759997937517,0.313,4392.4,4391.5,14.5]
[1759997938155,2.368,4392.6,4391.6,0.02277074]
[1759997938318,2.531,4392.3,4391.6,0.02277074]
[1759997938519,2.531,4392.3,4391.5,14.5]
[1759997938748,9.477,4393.2,4391.5,14.5]
[1759997938749,4.247,4392.4,4391.5,14.5]
[1759997938957,4.247,4392.5,4391.5,14.5]
[1759997939158,4.247,4392.5,4391.6,2.27703642]
[1759997939357,4.247,4392.5,4391.5,2.2770895]
[1759997939519,0.002,4393.2,4391.4,2.27717812]
[1759997939716,0.002,4393.2,4391.1,0.011]
[1759997939919,0.002,4393.2,4391.7,2.27702255]
[1759997939920,0.005,4393.1,4391.7,2.27702255]
[1759997940120,0.002,4393.2,4391.8,14.52276836]
[1759997940321,0.002,4393.2,4391.9,1.92]
[1759997940816,0.002,4393.2,4392.2,2.276712]
[1759997941066,0.002,4393.2,4391.9,1.92]
[1759997941245,9.96787165,4393.1,4390.4,2.27766218]
[1759997941450,9.96787165,4393.1,4390.1,2.28780328]
[1759997941451,9.96787165,4392.4,4390.1,0.01]
[1759997941762,2.27702664,4391.7,4390.2,14.5]
[1759997942125,6.47,4391.6,4390.3,2.27769722]
[1759997942451,6.47,4391.6,4390.3,1.92]
[1759997943155,6.47,4391.6,4390.3,4.19773933]
[1759997943326,9.96787165,4392.6,4390.4,2.277664]
[1759997943526,19.53643332,4392.5,4390.3,1.92]
[1759997943882,2.27692742,4391.9,4390.3,1.92]
[1759997944165,2.27707636,4391.6,4390.2,14.5]
[1759997944373,4.306,4391.5,4390.2,14.5]
[1759997944520,2.27728183,4391.2,4390.1,0.01]
[1759997945463,1.22443332,4392.5,4390.1,1.93]
[1759997945647,18.311,4392.4,4390.1,1.93]
[1759997946162,2.27719503,4391.4,4390.1,1.93]
[1759997946323,6.468,4391.3,4390.1,1.93]
[1759997947423,6.468,4391.3,4390.8,0.1136]
[1759997949268,6.468,4391.3,4390.2,0.001]
[1759997949269,2.27728183,4391.2,4390.2,0.001]
[1759997949445,0.002,4392.0,4390.3,0.1136]
[1759997949649,0.1136,4391.2,4390.3,0.1136]
[1759997949861,2.2876,4391.2,4390.7,0.1136]
[1759997950068,6.5806,4391.2,4390.7,0.1136]
[1759997950462,0.1136,4391.2,4390.7,0.1136]
[1759997950662,6.467,4391.2,4390.7,0.1136]
[1759997950854,6.466,4391.2,4391.1,0.1246]
[1759997951563,0.1136,4391.9,4391.1,0.1246]
[1759997951880,0.002,4392.0,4391.1,0.1246]
[1759997952061,0.002,4392.0,4391.9,2.27691887]
[1759997952260,0.0012,4392.0,4391.9,4.42461076]
[1759997952460,0.0012,4392.0,4391.9,2.14769189]
[1759997952667,0.0012,4392.0,4391.9,16.64769189]
[1759997955882,0.0012,4392.0,4390.9,2.369]
[1759997956178,0.0012,4392.0,4390.8,1.92]
[1759997956363,0.0012,4392.0,4390.9,14.5]
[1759997956876,0.0012,4392.0,4388.7,2.27856307]
[1759997956877,0.806,4391.9,4390.4,8.74365729]
[1759997957179,2.27697071,4391.8,4390.5,14.5]
[1759997957377,0.806,4391.9,4390.6,0.02377593]
[1759997957578,1.0,4391.8,4390.6,0.02377593]
[1759997957881,1.823,4391.8,4390.6,1.94377593]
[1759997958178,3.63,4391.7,4390.6,1.921]
[1759997958375,2.27708087,4391.6,4390.6,0.001]
[1759997958577,3.63,4391.7,4390.6,0.001]
[1759997958951,2.27714152,4391.5,4390.6,0.001]
[1759997959146,3.63,4391.7,4390.6,0.001]
[1759997959348,0.6998,4391.6,4390.6,0.001]
[1759997959545,2.27724643,4391.3,4390.6,0.001]
[1759997959862,2.27718008,4391.4,4390.6,0.001]
[1759997960272,2.27707441,4391.6,4390.6,0.001]
[1759997960680,2.27714799,4391.5,4390.6,0.001]
[1759997960881,2.27710754,4391.6,4390.6,0.001]
[1759997961090,2.27713476,4391.5,4390.6,0.001]
[1759997961568,6.467,4391.4,4390.6,0.001]
[1759997961881,8.74418371,4391.4,4390.6,0.001]
[1759997962082,8.74418371,4391.4,4390.8,0.1136]
[1759997962251,6.467,4391.4,4390.8,0.1136]
[1759997963576,6.466,4391.3,4390.6,0.001]
[1759997963788,6.466,4391.5,4391.1,0.1246]
[1759997964494,6.466,4391.5,4391.1,0.011]
[1759997964901,2.27727338,4391.3,4391.1,0.011]
[1759997965100,0.1136,4391.6,4391.1,0.011]
[1759997965306,2.27713312,4391.5,4391.1,0.011]
[1759997966004,6.465,4391.4,4391.1,0.011]
[1759997966169,8.74218032,4391.4,4391.1,0.011]
[1759997966370,2.27722997,4391.3,4391.1,0.011]
[1759997966681,0.1136,4391.3,4391.1,0.011]
[1759997967007,2.39087006,4391.3,4391.1,0.011]
[1759997967603,2.27728183,4391.2,4391.1,0.011]
[1759997967988,2.39083982,4391.3,4391.1,0.011]
[1759997968182,0.1136,4391.3,4391.1,0.011]
[1759997968705,6.464,4391.2,4391.1,0.011]
[1759997970076,1.1136,4391.3,4391.1,0.011]
[1759997970282,4.908,4391.2,4391.1,0.011]
[1759997971596,7.18528183,4391.2,4391.1,0.011]
[1759997971795,8.21149915,4391.2,4391.1,0.011]
[1759997972986,3.30349915,4391.2,4391.1,0.011]
[1759997973185,21.61149915,4391.2,4391.1,0.011]
[1759997974699,3.30349915,4391.2,4391.1,0.011]
[1759997974882,21.61149915,4391.2,4391.1,0.011]
[1759997975082,22.06079915,4391.2,4391.1,0.011]
[1759997975278,2.27754116,4390.7,4390.6,0.001]
[1759997975483,18.98072738,4390.7,4390.6,0.001]
[1759997977601,12.51872738,4390.7,4390.6,0.001]
[1759997977820,30.82572738,4390.7,4390.6,0.001]
[1759997978529,2.80835528,4390.7,4390.6,0.001]
[1759997978734,1.02621732,4391.2,4390.6,0.001]
[1759997979107,2.27742582,4391.0,4390.6,0.001]
[1759997979306,2.369,4390.9,4390.6,0.001]
[1759997979631,6.461,4390.8,4390.6,0.001]
[1759997979827,2.27729735,4391.2,4390.6,0.001]
[1759997980009,1.0,4391.3,4390.6,0.001]
[1759997980010,9.03033369,4391.1,4390.6,0.001]
[1759997980210,2.27739246,4391.0,4390.6,0.001]
[1759997980406,1.0,4391.3,4390.6,0.001]
[1759997980726,0.959,4391.2,4390.6,0.001]
[1759997980931,3.369,4391.3,4390.6,0.001]
[1759997980932,1.0,4391.3,4390.6,0.001]
[1759997981129,3.679,4391.1,4390.6,0.001]
[1759997981531,6.46,4391.0,4390.6,0.001]
[1759997981739,6.46,4391.2,4390.6,0.001]
[1759997982137,0.002,4391.5,4390.7,1.92]
[1759997982324,0.002,4391.5,4390.8,0.02277488]
[1759997982837,0.002,4391.5,4391.0,1.92]
[1759997983128,0.002,4391.5,4391.2,2.27728183]
[1759997983332,0.002,4391.5,4391.3,0.02277228]
[1759997983631,0.002,4391.5,4391.4,18.89145535]
[1759997984130,0.002,4391.5,4391.4,25.35145535]
[1759997986315,0.002,4391.5,4391.4,25.98505535]
[1759997986515,0.00042448,4391.5,4391.4,25.98505535]
[1759997987433,0.00042448,4391.5,4391.4,27.71945535]
[1759997987946,0.00042448,4391.5,4391.4,28.35305535]
[1759997989355,0.0012,4392.0,4391.9,4.83051887]
[1759997989659,0.0012,4392.0,4391.9,11.82807278]
[1759997989846,0.0012,4392.0,4391.9,4.73647278]
[1759997990045,0.0012,4392.0,4391.9,28.06247278]
[1759997991018,0.0012,4392.0,4391.9,28.69607278]
[1759997992728,0.0012,4392.0,4391.9,28.58247278]
[1759997993844,0.0012,4392.0,4391.9,19.75647278]
[1759997994066,0.0012,4392.0,4391.9,21.49087278]
[1759997994366,0.0012,4392.0,4391.9,27.94587278]
[1759997995645,0.0012,4392.0,4391.9,28.57947278]
[1759997996568,0.0012,4392.0,4391.9,19.12287278]
[1759997996767,0.0012,4392.0,4391.9,21.49087278]
[1759997997063,0.0012,4392.0,4391.9,27.94387278]
[1759997997234,0.0012,4392.0,4391.9,25.59791887]
[1759997997662,0.0012,4392.0,4391.9,27.51791887]
[1759997998064,0.0012,4392.0,4391.9,25.59791887]
[1759997998265,0.0004,4392.0,4391.9,25.59791887]
[1759997998563,0.0004,4392.0,4391.9,27.51791887]
[1759997998933,2.3617118,4394.0,4392.5,2.27656296]
[1759997999134,2.3617118,4394.0,4392.7,1.92]
[1759997999367,2.3617118,4394.0,4392.0,1.92]
[1759997999566,2.3617118,4394.0,4392.5,2.27659952]
[1759997999734,2.3617118,4394.0,4392.7,1.92]
[1759997999934,2.27778404,4394.1,4392.7,1.92]
[1759998000140,4.307,4394.0,4392.7,1.92]
[1759998000353,6.704,4394.0,4390.9,2.368]
[1759998000552,9.91580952,4393.9,4391.0,6.451]
[1759998000753,2.27609774,4393.5,4391.5,2.27711329]
[1759998000976,2.27635483,4393.0,4391.5,14.5]
[1759998001150,8.82,4393.4,4391.5,14.5]
[1759998001357,2.27659567,4392.6,4392.1,0.01]
[1759998001552,4.7,4392.5,4392.1,0.01]
[1759998001970,6.97662011,4392.5,4392.1,0.01]
[1759998002388,4.7,4392.5,4392.1,0.01]
[1759998002886,2.27676216,4392.3,4392.1,0.01]
[1759998003194,2.27676335,4392.2,4392.1,0.01]
[1759998004015,0.93669717,4392.3,4392.1,0.01]
[1759998004194,0.1136,4392.4,4392.1,0.01]
[1759998004686,2.043,4392.5,4392.2,0.02276763]
[1759998004870,2.043,4392.7,4392.1,0.1236]
[1759998005483,11.74921584,4393.3,4392.1,0.1236]
[1759998005484,2.368,4393.2,4392.2,0.02276763]
[1759998005779,6.451,4393.0,4392.4,0.1136]
[1759998006086,1.0,4392.8,4392.5,0.02276607]
[1759998006862,3.27650174,4392.8,4392.4,0.1136]
[1759998007062,0.1136,4392.6,4392.1,0.01]
[1759998007261,0.1136,4392.3,4392.1,0.01]
[1759998007474,6.452,4392.2,4392.1,0.01]
[1759998008803,6.452,4392.2,4390.6,0.001]
[1759998008804,0.6336,4391.6,4390.6,0.001]
[1759998009012,1.92,4391.8,4390.6,0.001]
[1759998009013,2.27754116,4390.7,4390.6,0.001]
[1759998009304,21.20514116,4390.7,4390.6,0.001]
[1759998009503,21.64624116,4390.7,4390.6,0.001]
[1759998010175,2.27754116,4390.7,4390.6,0.001]
[1759998010387,21.02804181,4390.7,4390.6,0.001]
[1759998010708,21.46914181,4390.7,4390.6,0.001]
[1759998011109,21.02804181,4390.7,4390.6,0.001]
[1759998012006,22.10274181,4390.7,4390.6,0.001]
[1759998012716,22.10274181,4390.7,4390.0,0.5]
[1759998012880,22.10274181,4390.7,4387.4,0.02579254]
[1759998012881,0.6336,4390.0,4387.4,0.02579254]
[1759998013074,2.91164394,4389.8,4387.4,0.02579254]
[1759998013303,0.6336,4390.0,4387.6,1.92]
[1759998013506,2.27805564,4389.8,4387.8,2.2789968]
[1759998013701,1.58,4389.7,4387.9,0.02278994]
[1759998014020,1.58,4389.7,4388.0,14.5]
[1759998014212,2.27811812,4389.6,4388.0,14.5]
[1759998014417,3.85806838,4389.7,4388.1,1.92]
[1759998014622,2.27841507,4389.1,4388.1,1.92]
[1759998014792,2.27841507,4389.1,4387.4,0.003]
[1759998014793,2.27854484,4388.8,4387.4,0.003]
[1759998014994,2.27847899,4388.9,4387.4,0.003]
[1759998015332,4.428,4389.0,4387.5,2.16859212]
[1759998015536,4.428,4389.0,4387.8,0.003]
[1759998016547,2.27847867,4388.9,4387.8,0.003]
[1759998016739,9.69950952,4388.6,4387.8,0.003]
[1759998016908,2.2789945,4387.9,4387.8,0.003]
[1759998017103,30.74029524,4387.9,4387.8,0.003]
[1759998017433,21.04078572,4387.9,4387.8,0.003]
[1759998017999,0.45579122,4387.9,4387.8,0.003]
[1759998018236,8.829,4387.9,4387.8,0.003]
[1759998018930,11.229,4387.9,4387.8,0.003]
[1759998019100,2.4,4387.9,4387.8,0.003]
[1759998019434,11.229,4387.9,4387.8,0.003]
[1759998019936,8.86,4387.9,4387.8,0.003]
[1759998020136,11.23,4387.9,4387.8,0.003]
[1759998020510,13.5089945,4387.9,4387.8,0.003]
[1759998020711,2.4,4387.9,4387.8,0.003]
[1759998021039,11.23,4387.9,4387.8,0.003]
[1759998021211,0.196332,4387.8,4387.4,0.003]
[1759998021409,0.195532,4387.8,4387.4,0.003]
[1759998021928,0.081932,4387.8,4387.4,0.003]
[1759998022237,2.307,4387.7,4387.4,0.003]
[1759998022736,6.266,4387.6,4387.4,0.003]
[1759998022966,5.496,4387.5,4387.4,0.003]
[1759998023336,6.46,4387.5,4387.4,0.003]
[1759998025668,0.1136,4387.6,4387.4,0.003]
[1759998025866,6.541932,4387.8,4387.4,0.23163968]
[1759998026047,6.541932,4387.8,4387.4,0.003]
[1759998027164,2.39280227,4387.5,4387.4,0.003]
[1759998027538,0.1136,4387.5,4387.4,0.003]
[1759998028156,2.39280227,4387.5,4387.4,0.003]
[1759998028869,0.1136,4387.5,4387.4,0.003]
[1759998029448,6.462,4387.5,4387.4,0.003]
[1759998029844,8.74120227,4387.5,4387.4,0.003]
[1759998030038,9.6235157,4387.5,4387.4,0.003]
[1759998030480,7.34431343,4387.5,4387.4,0.003]
[1759998030758,9.71431343,4387.5,4387.4,0.003]
[1759998031173,0.88231343,4387.5,4387.4,0.003]
[1759998031484,2.852,4387.5,4387.4,0.003]
[1759998031686,0.081932,4387.8,4387.4,0.003]
[1759998031876,0.1136,4387.5,4387.4,0.003]
[1759998032074,2.27920227,4387.5,4387.4,0.003]
[1759998032273,3.38130227,4387.5,4387.4,0.003]